Cogmind - Beta 16.1 @@@ ROGUE MODE // 2026.03.04 @ 17:00:09 Player: Ceorik Result: Escaped! Performance ------------- Evolutions (9) 4500 Regions Visited (17) 3400 Robots Destroyed (45) 225 Value Destroyed (1211) 1211 Prototype IDs (35) 700 Alien Tech Used (0) 0 Bonus (4894) 4894 TOTAL SCORE: 14930 Bonus ------- Follower Combat Kills 594 Entered DSFs 1000 Aligned with FarCom 300 Win 3000 Cogmind --------- Core Integrity 1600/1600 Matter 86/300 Energy 369/440 System Corruption 0% Temperature Hot (248) Movement Flying (12) Location To Epsilon Eridani Parts ------- > --- POWER (3) -------- Quantum Reactor Light Quantum Reactor > --- PROPULSION (10) -- Xenon Bombardment Thruster Xenon Bombardment Thruster Nuclear Pulse Thruster Cooled Cesium-ion Thruster Field Propulsion Drive Cooled Field Propulsion Drive Cooled Field Propulsion Drive Diametric Drive Q-thruster Q-thruster > --- UTILITY (10) ----- Advanced Heat Sink Advanced Coolant Injector Advanced Visual Processing Unit Improved Hacking Suite Improved Hacking Suite Improved Hacking Suite Advanced System Shield Advanced System Shield > --- WEAPON (2) ------- Enhanced Nova Cannon Force Lance > --- INVENTORY (5) ---- Light Quantum Reactor Cooled Field Propulsion Drive Improved Shock Absorption System Fusion Bomb Launcher Improved Plasma Cutter Peak State ------------ > --- POWER ------------ Quantum Reactor Light Quantum Reactor Light Quantum Reactor > --- PROPULSION ------- Xenon Bombardment Thruster Xenon Bombardment Thruster Nuclear Pulse Thruster Cooled Cesium-ion Thruster Field Propulsion Drive Cooled Field Propulsion Drive Cooled Field Propulsion Drive Diametric Drive Q-thruster Q-thruster > --- UTILITY ---------- Advanced Heat Sink Advanced Coolant Injector Advanced Visual Processing Unit Improved Shock Absorption System Improved Hacking Suite Improved Hacking Suite Improved Hacking Suite Advanced System Shield Advanced System Shield > --- WEAPON ----------- Enhanced Nova Cannon Force Lance > --- INVENTORY -------- Cooled Field Propulsion Drive Fusion Bomb Launcher Improved Plasma Cutter [Rating: 158] Favorites ----------- Power Light Nuclear Core Engine Ion Engine Power Core Light Nuclear Core Reactor Light Quantum Reactor Propulsion Xenon Bombardment Thruster Treads Light Treads Leg Improved Carbon-fiber Leg Wheel Wheel Flight Unit Xenon Bombardment Thruster Utility Improved Hacking Suite Device Improved Heat Sink Storage High-capacity Storage Unit Processor Advanced Visual Processing Unit Hackware Improved Hacking Suite Protection Layered Light Armor Plating Weapon Light Assault Rifle Energy Gun Pulse Rifle Energy Cannon Heavy Plasma Cannon Ballistic Gun Light Assault Rifle Ballistic Cannon Light Cannon Launcher Missile Launcher Slashing Weapon Chainsword Piercing Weapon Force Lance Build | -11 -10 -10 -10 -9 -8 -8 -7 -7 -6 -6 -6 -5 -4 -3 -3 -2 -1 ------- Run | Yrd Mat Min Exi Min Mat Sto Fac DSF Fac Was Fac Fac Fac Res DSF Res Acc Slots Evolved 18 | . . . . . 4 . 2 . 2 . . 2 2 2 . 2 2 Power 2 | . . . . . . . . . . . . 1 . . . . 1 Propulsion 8 | . . . . . 2 . 2 . . . . 1 . 1 . 1 1 Utility 8 | . . . . . 2 . . . 2 . . . 2 1 . 1 . Weapon . | . . . . . . . . . . . . . . . . . . Parts Attached 111 | 7 3 9 . 2 18 5 11 3 12 . 9 6 5 4 1 9 7 Power 15 | 1 . 1 . . 1 3 . . 1 . . 3 . . . 2 3 Engine 6 | 1 . 1 . . 1 2 . . . . . 1 . . . . . Core 2 | . . . . . . 1 . . 1 . . . . . . . . Reactor 7 | . . . . . . . . . . . . 2 . . . 2 3 Propulsion 45 | 2 . 4 . . 8 . 6 2 6 . 4 1 2 3 . 3 4 Treads 6 | 2 . . . . 2 . . . 2 . . . . . . . . Leg 7 | . . . . . 5 . . . 1 . 1 . . . . . . Wheel 7 | . . 4 . . 1 . . 2 . . . . . . . . . Hover . | . . . . . . . . . . . . . . . . . . Flight 25 | . . . . . . . 6 . 3 . 3 1 2 3 . 3 4 Utility 32 | 2 1 2 . 1 6 . 3 1 4 . 4 1 3 1 . 3 . Device 11 | 1 . 1 . 1 2 . . . 1 . 1 1 1 1 . 1 . Storage 6 | 1 1 1 . . 2 . 1 . . . . . . . . . . Processor 4 | . . . . . 2 . . . . . . . 1 . . 1 . Hackware 9 | . . . . . . . 1 1 2 . 3 . 1 . . 1 . Protection 2 | . . . . . . . 1 . 1 . . . . . . . . Artifact . | . . . . . . . . . . . . . . . . . . Weapon 19 | 2 2 2 . 1 3 2 2 . 1 . 1 1 . . 1 1 . Energy Gun 2 | . . . . . 1 1 . . . . . . . . . . . Energy Cannon 5 | . . . . . 1 . 1 . 1 . 1 . . . . 1 . Ballistic Gun 7 | 2 2 1 . 1 1 . . . . . . . . . . . . Ballistic Cannon 1 | . . 1 . . . . . . . . . . . . . . . Launcher 2 | . . . . . . 1 1 . . . . . . . . . . Special Weapon . | . . . . . . . . . . . . . . . . . . Impact Weapon . | . . . . . . . . . . . . . . . . . . Slashing Weapon 1 | . . . . . . . . . . . . 1 . . . . . Piercing Weapon 1 | . . . . . . . . . . . . . . . 1 . . Special Melee Weapon . | . . . . . . . . . . . . . . . . . . Unidentified Prototypes 10 | . . . . 1 1 4 . . 1 . . 1 . . . . 2 Parts Lost 26 | . 2 4 . 2 2 . . 6 2 . 1 . 2 . . 4 1 Power 5 | . . 1 . . 1 . . . 1 . . . 1 . . . 1 Propulsion 13 | . . 2 . 1 1 . . 5 . . 1 . 1 . . 2 . Utility 4 | . 1 . . . . . . 1 . . . . . . . 2 . Weapon 4 | . 1 1 . 1 . . . . 1 . . . . . . . . Highest Loss Streak 6 | . 1 2 . 1 1 . . 6 1 . 1 . 2 . . 1 1 To Critical Strikes . | . . . . . . . . . . . . . . . . . . Average Backups 9 | 3 10 13 16 15 17 19 5 5 3 2 4 3 4 4 4 4 3 Power 1 | . 1 2 2 2 2 2 . 1 . 1 1 . . . . . . Propulsion 2 | 1 2 2 3 3 3 6 . . . . . 1 1 1 2 1 . Utility 3 | . 2 4 5 5 6 7 2 3 . . 1 1 . . . . . Weapon 2 | 1 3 4 6 4 4 4 1 1 1 1 1 1 . 1 1 1 1 Tool/Special . | . . . . . . . . . . . . . . . . . . Unused Backups 23 | . 3 . . . 6 2 8 1 . . . . . . . . 3 Power 4 | . 1 . . . . 1 2 . . . . . . . . . . Propulsion 1 | . . . . . . . . . . . . . . . . . 1 Utility 7 | . 2 . . . 3 . 1 1 . . . . . . . . . Weapon 10 | . . . . . 3 1 5 . . . . . . . . . 1 Tool/Special 1 | . . . . . . . . . . . . . . . . . 1 Average Slot Usage (%) 92 | . 99 96 71 96 95 99 98 90 66 93 90 94 94 97 100 93 88 Engine 6 | . 14 12 14 14 9 6 . . . . . 5 5 4 4 2 . Core 2 | . . . . . . 2 6 7 5 6 6 4 4 . . . . Treads 6 | . 28 6 . . 6 . . . 2 6 4 . . . . . . Leg 4 | . . . . . 11 36 1 . . . 1 . . . . . . Wheel 6 | . . 20 28 25 15 . . . 3 . . . . . . . . Flight 15 | . . . . . . . 43 39 18 33 30 40 36 38 38 36 33 Device 8 | . 3 5 14 13 11 17 8 5 1 13 6 5 5 11 14 12 11 Storage 9 | . 24 22 14 14 16 9 . . . . . . . . . . . Processor 4 | . . . . . 6 9 7 7 6 6 6 5 6 4 4 4 4 Hackware 9 | . . . . . . . 5 6 12 13 24 23 24 23 23 21 20 Energy Cannon 4 | . . . . . 7 9 7 7 6 6 6 5 5 4 4 4 4 Ballistic Gun 7 | . 28 21 . 18 6 8 1 . . . . . . . . . . Peak Build Rating 158 | 7 8 8 8 17 47 47 49 44 59 60 68 80 99 115 118 141 158 Average Rating 45 | 5 7 7 7 14 29 45 44 41 37 59 61 75 87 110 117 130 144 On Entrance 52 | . 7 8 8 8 17 47 46 44 24 59 60 68 80 99 115 118 140 Avg Prop Armor Cover (%) 10 | . . . . . 13 . . 10 9 6 12 2 . . 16 4 . Naked Turns . | . . . . . . . . . . . . . . . . . . Heaviest Build 76 | 13 33 48 44 55 67 67 66 23 26 26 29 29 39 40 43 61 76 Greatest Support 77 | 40 40 40 20 20 69 69 69 32 32 32 41 48 48 56 59 69 77 Greatest Overweight (x) 6 | . . 2 2 5 6 . . 5 1 . . . . . 6 2 1 Average Overweight (x) . | . . 1 2 2 2 . . . . . . . . . . . . Largest Inventory Capacity 20 | 8 15 20 20 20 20 20 20 5 5 5 5 5 5 5 5 5 5 Average Capacity 11 | 7 13 16 20 20 20 20 5 5 5 5 5 5 5 5 5 5 5 Most Carried 20 | 5 15 15 18 18 20 20 20 5 5 3 5 5 5 4 5 5 5 Average Carried 9 | 3 10 13 17 16 18 20 5 4 2 2 4 3 4 3 4 4 3 Final Capacity 20 | 8 15 20 20 20 20 20 5 5 5 5 5 5 5 5 5 5 5 Final Carried 20 | 5 15 14 18 18 20 20 5 5 2 3 5 4 5 4 5 5 5 Class Distribution -------------------- 33% | Mutant 18% | Hacker-Mutant 14% | Scavenger-Mutant 12% | Wizard-Sprinter 6% | Commander-Mutant 5% | Hacker-Sprinter 5% | Sprinter 3% | Wizard-Mutant Dominant Class ---------------- Mutant | -10/Materials Mutant | -10/Mines Mutant | -10/Exiles Mutant | -9/Mines Scavenger-Mutant | -8/Materials Commander-Mutant | -8/Storage Sprinter | -7/Factory Mutant | -7/DSF Hacker-Mutant | -6/Factory Hacker-Mutant | -6/Waste Hacker-Mutant | -6/Factory Hacker-Sprinter | -5/Factory Wizard-Sprinter | -4/Factory Wizard-Sprinter | -3/Research Wizard-Mutant | -3/DSF Wizard-Sprinter | -2/Research Wizard-Mutant | -1/Access Resources | -11 -10 -10 -10 -9 -8 -8 -7 -7 -6 -6 -6 -5 -4 -3 -3 -2 -1 ----------- Run | Yrd Mat Min Exi Min Mat Sto Fac DSF Fac Was Fac Fac Fac Res DSF Res Acc Matter Collected 2115 | 252 145 461 . 288 252 86 . 174 86 . . . 127 . . 130 114 Remotely . | . . . . . . . . . . . . . . . . . . Salvage Created 1964 | 43 281 293 . 38 546 192 . . 179 . . . 127 . . 163 102 Parts 120 | 9 20 12 . . 44 14 . . 7 . . . 5 . . 5 4 Haulers Intercepted 1 | . . . . . . 1 . . . . . . . . . . . Recyclers Shooed 4 | 1 . 1 . . . . . . . . . . 1 . . . 1 Parts Field Recycled . | . . . . . . . . . . . . . . . . . . Retrieved Matter . | . . . . . . . . . . . . . . . . . . Parts Self-Destructed . | . . . . . . . . . . . . . . . . . . Prevented . | . . . . . . . . . . . . . . . . . . Parts Restored . | . . . . . . . . . . . . . . . . . . Kills | -11 -10 -10 -10 -9 -8 -8 -7 -7 -6 -6 -6 -5 -4 -3 -3 -2 -1 ------- Run | Yrd Mat Min Exi Min Mat Sto Fac DSF Fac Was Fac Fac Fac Res DSF Res Acc Combat Hostiles Destroyed 32 | . 11 5 . 4 8 1 . . 3 . . . . . . . . Guns 19 | . 11 3 . 2 3 . . . . . . . . . . . . Cannons 13 | . . 2 . 2 5 1 . . 3 . . . . . . . . Classes Destroyed 13 | 1 2 2 . 1 5 1 . . . . . . . . . 1 . Worker 1 | . . 1 . . . . . . . . . . . . . . . Builder 3 | . . . . . 1 2 . . . . . . . . . . . Tunneler 3 | 3 . . . . . . . . . . . . . . . . . Hauler 1 | . . . . . . 1 . . . . . . . . . . . Recycler 5 | . . 1 . . 1 . . . . . . . 1 . . 1 1 Operator 2 | . . . . . 2 . . . . . . . . . . . . Watcher 1 | . . . . . . . . . . . . . . . . 1 . Swarmer 7 | . 7 . . . . . . . . . . . . . . . . Grunt 15 | . 4 5 . . 2 2 . . 2 . . . . . . . . Sentry 3 | . . . . . 2 . . . 1 . . . . . . . . Specialist 2 | . . . . . 2 . . . . . . . . . . . . Hunter 2 | . . . . . 2 . . . . . . . . . . . . Assembled 4 | . . . . 4 . . . . . . . . . . . . . Best Kill Streak 5 | 2 3 5 . 2 3 2 . . 2 . . . 1 . . 1 1 Combat Bots Only 3 | . 3 2 . 2 2 1 . . 2 . . . . . . . . Max Kills in Single Turn 2 | 1 1 2 . 1 1 1 . . 1 . . . 1 . . 1 1 Gunslinging . | . . . . . . . . . . . . . . . . . . Exploded . | . . . . . . . . . . . . . . . . . . Melee . | . . . . . . . . . . . . . . . . . . Uniques/NPCs Destroyed . | . . . . . . . . . . . . . . . . . . Combat | -11 -10 -10 -10 -9 -8 -8 -7 -7 -6 -6 -6 -5 -4 -3 -3 -2 -1 -------- Run | Yrd Mat Min Exi Min Mat Sto Fac DSF Fac Was Fac Fac Fac Res DSF Res Acc Hostile Shots Fired 362 | . 74 27 . 23 37 7 . 38 50 . 17 . 18 . 11 57 3 Missed 137 | . 18 3 . 7 9 1 . 19 15 . 13 . 9 . 7 35 1 Hits 225 | . 56 24 . 16 28 6 . 19 35 . 4 . 9 . 4 22 2 Melee 5 | . . . . 5 . . . . . . . . . . . . . Projectile 220 | . 56 24 . 11 28 6 . 19 35 . 4 . 9 . 4 22 2 AOE 1 | . . . . . 1 . . . . . . . . . . . . Critical Strikes 5 | . 1 3 . . . . . 1 . . . . . . . . . Damage Taken 3785 | . 603 326 . 249 642 86 . 363 511 . 64 . 142 . 73 617 109 Core 630 | . 110 57 . 59 119 32 . 119 112 . . . . . . 22 . Absorbed by Shields . | . . . . . . . . . . . . . . . . . . Core Remaining (%) 84 | 100 . . . 9 . 72 . 83 . . 86 100 100 . 100 98 100 Volleys Fired 200 | 10 41 20 . 12 45 18 . . 14 . 18 . 11 . . 11 . Largest 2 | 2 2 2 . 2 2 2 . . 2 . 1 . 1 . . 1 . Hottest 160 | 40 40 50 . 50 123 85 . . 160 . 90 . 90 . . 120 . Shots Fired 314 | 20 82 38 . 24 72 22 . . 16 . 18 . 11 . . 11 . Gun 179 | 20 82 26 . 20 27 4 . . . . . . . . . . . Cannon 135 | . . 12 . 4 45 18 . . 16 . 18 . 11 . . 11 . Launcher . | . . . . . . . . . . . . . . . . . . Special . | . . . . . . . . . . . . . . . . . . Kinetic 189 | 20 82 38 . 24 21 4 . . . . . . . . . . . Thermal 125 | . . . . . 51 18 . . 16 . 18 . 11 . . 11 . Explosive . | . . . . . . . . . . . . . . . . . . Electromagnetic . | . . . . . . . . . . . . . . . . . . Robot Hit Streak 13 | 6 9 13 . 4 13 12 . . 7 . . . . . . . . Robot Miss Streak 3 | 1 3 3 . 3 2 1 . . 2 . . . . . . . . Penetration Max . | . . . . . . . . . . . . . . . . . . Secondary Targets . | . . . . . . . . . . . . . . . . . . Shots Hit Robots 179 | 15 50 27 . 15 43 11 . . 10 . . . 2 . . 2 4 Core Hits 86 | 6 19 13 . 11 21 7 . . 6 . . . 1 . . 1 1 Critical Kills 1 | . . 1 . . . . . . . . . . . . . . . Critical Parts Destroyed . | . . . . . . . . . . . . . . . . . . Critical Strikes 2 | . . 1 . . 1 . . . . . . . . . . . . Burn 1 | . . . . . 1 . . . . . . . . . . . . Destroy 1 | . . 1 . . . . . . . . . . . . . . . Melee Attacks 25 | . . . . . . . . . . . . . 5 . . 16 4 Impact . | . . . . . . . . . . . . . . . . . . Slashing 5 | . . . . . . . . . . . . . 5 . . . . Piercing 20 | . . . . . . . . . . . . . . . . 16 4 Sneak Attacks 5 | . . . . . . . . . . . . . 1 . . 1 3 Combat Hostiles . | . . . . . . . . . . . . . . . . . . Follow-up Attacks . | . . . . . . . . . . . . . . . . . . Damage Inflicted 3097 | 121 425 361 . 140 862 263 . . 285 . . . 125 . . 163 352 Guns 1257 | 121 424 265 . 102 309 36 . . . . . . . . . . . Cannons 1183 | . . 96 . 38 553 211 . . 285 . . . . . . . . Explosions . | . . . . . . . . . . . . . . . . . . Melee 640 | . . . . . . . . . . . . . 125 . . 163 352 Ramming 17 | . 1 . . . . 16 . . . . . . . . . . . Kinetic 1305 | 121 424 361 . 140 223 36 . . . . . . . . . . . Thermal 1135 | . . . . . 639 211 . . 285 . . . . . . . . Explosive . | . . . . . . . . . . . . . . . . . . Electromagnetic . | . . . . . . . . . . . . . . . . . . Impact . | . . . . . . . . . . . . . . . . . . Slashing 125 | . . . . . . . . . . . . . 125 . . . . Piercing 515 | . . . . . . . . . . . . . . . . 163 352 Highest Corruption 15 | . 2 2 2 4 . . . 1 7 7 15 3 . . . . . Average Corruption 5 | . 2 2 2 3 . . . 1 5 7 10 3 . . . . . Corruption Purged . | . . . . . . . . . . . . . . . . . . Corruption Blocked . | . . . . . . . . . . . . . . . . . . Effects 70 | . 6 6 3 8 . . . . 6 2 39 . . . . . . Message Errors 16 | . 1 1 . . . . . . 2 1 11 . . . . . . Matter Fused 11 | . . 3 . 1 . . . . 1 1 5 . . . . . . Heat Flow Errors 12 | . 1 . 1 3 . . . . 1 . 6 . . . . . . Energy Discharges 8 | . 1 . 1 1 . . . . 1 . 4 . . . . . . Parts Rejected 3 | . 1 . . 1 . . . . . . 1 . . . . . . Parts Fused 1 | . . . . . . . . . . . 1 . . . . . . Data Loss (minor) 8 | . 1 1 1 . . . . . . . 5 . . . . . . Data Loss (major) 3 | . . . . . . . . . . . 3 . . . . . . Misfires 3 | . . . . 1 . . . . 1 . 1 . . . . . . Alerts 2 | . 1 . . . . . . . . . 1 . . . . . . Weapon Failures 3 | . . 1 . 1 . . . . . . 1 . . . . . . Overload Shots . | . . . . . . . . . . . . . . . . . . Overflow Damage 143 | . . . . . . . . . . . . . . . . 76 67 Projectiles . | . . . . . . . . . . . . . . . . . . Explosions . | . . . . . . . . . . . . . . . . . . Melee 143 | . . . . . . . . . . . . . . . . 76 67 Knockbacks 1 | . . 1 . . . . . . . . . . . . . . . Impact . | . . . . . . . . . . . . . . . . . . Kinetic 1 | . . 1 . . . . . . . . . . . . . . . Secondary . | . . . . . . . . . . . . . . . . . . Self-Inflicted Damage . | . . . . . . . . . . . . . . . . . . Shots . | . . . . . . . . . . . . . . . . . . Rammed 1 | . 1 . . . . . . . . . . . . . . . . Targets Rammed 4 | . 1 . . . 1 2 . . . . . . . . . . . Kicked 3 | . . . . . 1 2 . . . . . . . . . . . Crushed . | . . . . . . . . . . . . . . . . . . Highest Temperature 299 | . 113 13 129 266 34 17 6 . 299 . 292 80 194 77 30 199 196 Average Temperature 79 | . 23 8 69 109 10 7 3 . 118 . 78 25 58 41 16 105 107 Received Heat Transfer 951 | . 234 234 . 24 138 36 . . 195 . 27 . . . 18 45 . Effects 3 | . . . . . . . . . 1 . 2 . . . . . . Energy Bleed 3 | . . . . . . . . . 1 . 2 . . . . . . Siege Activations . | . . . . . . . . . . . . . . . . . . Martial Activations . | . . . . . . . . . . . . . . . . . . Shielding Activations . | . . . . . . . . . . . . . . . . . . Robots Disrupted . | . . . . . . . . . . . . . . . . . . Combat Hostiles . | . . . . . . . . . . . . . . . . . . Robots Corrupted . | . . . . . . . . . . . . . . . . . . Combat Hostiles . | . . . . . . . . . . . . . . . . . . Parts Fried . | . . . . . . . . . . . . . . . . . . Impact Corruptions . | . . . . . . . . . . . . . . . . . . Robots Melted . | . . . . . . . . . . . . . . . . . . Combat Hostiles . | . . . . . . . . . . . . . . . . . . Parts Melted 1 | . . . . . 1 . . . . . . . . . . . . Heat Transferred 2030 | . . . . . 1147 333 . . 550 . . . . . . . . Parts Sabotaged . | . . . . . . . . . . . . . . . . . . Parts Stolen . | . . . . . . . . . . . . . . . . . . Parts Stripped . | . . . . . . . . . . . . . . . . . . Power Chain Reactions . | . . . . . . . . . . . . . . . . . . Alert | -11 -10 -10 -10 -9 -8 -8 -7 -7 -6 -6 -6 -5 -4 -3 -3 -2 -1 ------- Run | Yrd Mat Min Exi Min Mat Sto Fac DSF Fac Was Fac Fac Fac Res DSF Res Acc Maximum Alert Level 2 | . . . . . . 2 1 . . . . . . . . 1 . Low Security (%) 93 | 100 100 100 . 100 100 43 88 100 100 100 100 100 100 100 100 78 100 Level 1 4 | . . . . . . 26 11 . . . . . . . . 21 . Level 2 2 | . . . . . . 30 . . . . . . . . . . . Level 3 . | . . . . . . . . . . . . . . . . . . Level 4 . | . . . . . . . . . . . . . . . . . . Level 5 . | . . . . . . . . . . . . . . . . . . High Security . | . . . . . . . . . . . . . . . . . . Max Security . | . . . . . . . . . . . . . . . . . . Peak Influence 523 | 5 97 55 . . 84 523 219 69 78 21 131 34 108 20 15 264 111 Initial 219 | . . 13 . . . 21 219 44 23 21 . 34 6 20 15 8 111 Average 58 | 1 35 21 . . 17 294 141 48 20 10 49 25 12 20 15 111 71 Influence Increases 3099 | 15 378 145 . . 314 752 15 60 211 . 370 . 279 . . 525 35 Destroy 0b10 Robot/C 920 | . 220 100 . . 180 340 . . 80 . . . . . . . . Destroy 0b10 Robot/NC 90 | 15 . 10 . . 20 25 . . . . . . 5 . . 10 5 Destroy Leader 248 | . 50 20 . . 60 86 . . 30 . . . . . . 2 . Allied During Kill 238 | . . . . . 1 233 . . 4 . . . . . . . . Successful Hack 107 | . 18 . . . 14 5 . . 22 . 9 . 12 . . 27 . Select Force Hacks 30 | . . . . . . 30 . . . . . . . . . . . Disable Machine 30 | . . . . . . 30 . . . . . . . . . . . Destroy Structure 101 | . . . . . 9 3 . . . . 16 . 22 . . 51 . Partial Spotted 270 | . 30 . . . . . 15 15 . . 15 . 105 . . 75 15 Lose Combat Pursuer 1065 | . 60 15 . . 30 . . 45 75 . 330 . 135 . . 360 15 Influence Decreases 3053 | 15 344 174 5 . 263 320 434 80 193 62 299 57 254 19 5 354 175 Entered New Map 553 | . . 21 5 . . 30 264 20 21 41 . 37 8 19 5 7 75 Time Decay 1969 | 15 324 133 . . 193 230 170 . 151 21 299 20 116 . . 207 90 Search Patrol Dispatched 100 | . . . . . . . . . . . . . . . . 100 . Lost Part 190 | . 20 20 . . 10 . . 60 10 . . . 20 . . 40 10 Lost Ally 131 | . . . . . 60 60 . . 11 . . . . . . . . Purge Threat 110 | . . . . . . . . . . . . . 110 . . . . Squads Dispatched 27 | . 1 . . 1 3 2 . 1 4 . 8 . 3 . 1 3 . Investigation 6 | . . . . 1 . 1 . . 1 . 2 . 1 . . . . Extermination 7 | . . . . . . . . . 1 . 3 . 1 . . 2 . Reinforcement 14 | . 1 . . . 3 1 . 1 2 . 3 . 1 . 1 1 . Assault . | . . . . . . . . . . . . . . . . . . Garrison . | . . . . . . . . . . . . . . . . . . Intercept . | . . . . . . . . . . . . . . . . . . Searches Triggered 1 | . . . . . . . . . . . . . . . . 1 . Construction Impeded . | . . . . . . . . . . . . . . . . . . Haulers Reinforced . | . . . . . . . . . . . . . . . . . . Active Scanning Responses . | . . . . . . . . . . . . . . . . . . Cargo Convoy Interrupts . | . . . . . . . . . . . . . . . . . . Stealth | -11 -10 -10 -10 -9 -8 -8 -7 -7 -6 -6 -6 -5 -4 -3 -3 -2 -1 --------- Run | Yrd Mat Min Exi Min Mat Sto Fac DSF Fac Was Fac Fac Fac Res DSF Res Acc Distress Signals 22 | . . . . . 4 3 . . 1 . 8 . 3 . . 2 1 Communications Jammed . | . . . . . . . . . . . . . . . . . . Distress Signals . | . . . . . . . . . . . . . . . . . . Times Spotted 214 | . 22 6 . 22 32 18 . 7 13 6 31 . 18 . 3 31 5 Peak Tracking Total 20 | . 5 3 . 20 5 3 . 5 5 6 13 . 10 . 3 10 10 Tactical Retreats 39 | . 2 1 . 4 2 . . 3 3 . 11 . 3 . . 9 1 Traps | -11 -10 -10 -10 -9 -8 -8 -7 -7 -6 -6 -6 -5 -4 -3 -3 -2 -1 ------- Run | Yrd Mat Min Exi Min Mat Sto Fac DSF Fac Was Fac Fac Fac Res DSF Res Acc Traps Triggered 18 | . 2 . . . . 3 1 1 5 . 5 . 1 . . . . Indirectly . | . . . . . . . . . . . . . . . . . . Trap Hack Attempts . | . . . . . . . . . . . . . . . . . . Triggered . | . . . . . . . . . . . . . . . . . . Disarmed . | . . . . . . . . . . . . . . . . . . Reprogrammed . | . . . . . . . . . . . . . . . . . . Reused . | . . . . . . . . . . . . . . . . . . Traps Extracted . | . . . . . . . . . . . . . . . . . . Installed . | . . . . . . . . . . . . . . . . . . Triggered . | . . . . . . . . . . . . . . . . . . Machines | -11 -10 -10 -10 -9 -8 -8 -7 -7 -6 -6 -6 -5 -4 -3 -3 -2 -1 ---------- Run | Yrd Mat Min Exi Min Mat Sto Fac DSF Fac Was Fac Fac Fac Res DSF Res Acc Machines Disabled 2 | . . . . . . 2 . . . . . . . . . . . Max in Single Turn 1 | . . . . . . 1 . . . . . . . . . . . Garrison Access 5 | . . . . . . 1 1 . . . 1 . . . . 2 . Machines Repaired . | . . . . . . . . . . . . . . . . . . Machines Dismantled . | . . . . . . . . . . . . . . . . . . Machines Sabotaged . | . . . . . . . . . . . . . . . . . . Overloaded Fab Kills . | . . . . . . . . . . . . . . . . . . Hacking | -11 -10 -10 -10 -9 -8 -8 -7 -7 -6 -6 -6 -5 -4 -3 -3 -2 -1 --------- Run | Yrd Mat Min Exi Min Mat Sto Fac DSF Fac Was Fac Fac Fac Res DSF Res Acc Machines Accessed 72 | . 8 . 2 2 5 6 7 . 6 . 13 1 9 2 . 10 1 Terminals 46 | . 6 . . . 5 4 4 . 3 . 7 . 7 2 . 7 1 Fabricators 6 | . . . . . . . 1 . . . 3 1 1 . . . . Repair Stations . | . . . . . . . . . . . . . . . . . . Recycling Units 7 | . 2 . . . . 1 1 . 1 . 1 . 1 . . . . Scanalyzers 3 | . . . . . . . . . 1 . 1 . . . . 1 . Garrison Access 6 | . . . . . . 1 1 . 1 . 1 . . . . 2 . Total Hacks 175 | . 22 . 2 2 16 10 10 . 14 . 32 2 28 7 . 29 1 Successful 93 | . 11 . 2 2 9 5 3 . 5 . 18 . 23 2 . 12 1 Failed 82 | . 11 . . . 7 5 7 . 9 . 14 2 5 5 . 17 . Catastrophic 14 | . 2 . . . . . 2 . 1 . 4 . . . . 5 . Database Lockouts . | . . . . . . . . . . . . . . . . . . Manual 78 | . 12 . 1 . 11 4 2 . 6 . 14 . 16 6 . 6 . Terminals 125 | . 19 . . . 16 7 4 . 9 . 20 . 25 7 . 17 1 Fabricators 12 | . . . . . . . 2 . . . 6 2 2 . . . . Repair Stations . | . . . . . . . . . . . . . . . . . . Recycling Units 11 | . 3 . . . . 1 3 . 1 . 2 . 1 . . . . Scanalyzers 12 | . . . . . . . . . 2 . 3 . . . . 7 . Garrison Access 11 | . . . . . . 2 1 . 2 . 1 . . . . 5 . Terminal Hacks 46 | . 4 . 2 2 3 2 1 . 3 . 8 . 14 1 . 5 1 Record 2 | . . . 1 . . . . . . . . . 1 . . . . Part Schematic 2 | . . . . . . . . . . . 1 . 1 . . . . Prototype ID Bank 1 | . 1 . . . . . . . . . . . . . . . . Open Door 4 | . . . . 2 . 1 . . . . . . . . . . 1 Open DSF 5 | . . . . . . . 1 . 1 . . . 1 1 . 1 . Level Access Points 2 | . . . . . . . . . . . 1 . 1 . . . . Branch Access Points 1 | . . . . . . . . . 1 . . . . . . . . Emergency Access Points 1 | . 1 . . . . . . . . . . . . . . . . Fabricator Index 1 | . . . . . . . . . . . 1 . . . . . . Alert Level 7 | . . . . . 1 . . . 1 . 2 . 2 . . 1 . Unreport Threat 1 | . . . . . . . . . . . . . 1 . . . . Locate Traps 3 | . 1 . . . . . . . . . . . 1 . . 1 . Dispatch Records 1 | . . . . . . . . . . . 1 . . . . . . Extermination Status 1 | . . . . . . . . . . . . . 1 . . . . Recall Investigation 2 | . . . . . . . . . . . . . 2 . . . . Recall Extermination 2 | . . . . . . . . . . . 1 . . . . 1 . Hauler Manifests 1 | . 1 . . . . . . . . . . . . . . . . Zone Layout 8 | . . . . . 2 1 . . . . 1 . 3 . . 1 . Proto ID Catalog 1 | . . . 1 . . . . . . . . . . . . . . Fabricator Hacks 7 | . . . . . . . . . . . 5 . 2 . . . . Load Schematic 4 | . . . . . . . . . . . 3 . 1 . . . . Build 3 | . . . . . . . . . . . 2 . 1 . . . . Repair Station Hacks . | . . . . . . . . . . . . . . . . . . Recycling Unit Hacks 6 | . 2 . . . . . 1 . . . 2 . 1 . . . . Report Inventory 5 | . 2 . . . . . 1 . . . 1 . 1 . . . . Retrieve Components 1 | . . . . . . . . . . . 1 . . . . . . Scanalyzer 7 | . . . . . . . . . 1 . 1 . . . . 5 . Retrieve Study 7 | . . . . . . . . . 1 . 1 . . . . 5 . Garrison Access Hacks 5 | . . . . . . 1 1 . . . 1 . . . . 2 . Seal Access 5 | . . . . . . 1 1 . . . 1 . . . . 2 . Unauthorized Hacks 22 | . 5 . . . 6 2 . . 1 . 1 . 6 1 . . . Terminals 21 | . 5 . . . 6 1 . . 1 . 1 . 6 1 . . . Assimilate 1 | . . . . . 1 . . . . . . . . . . . . Botnet 20 | . 5 . . . 5 1 . . 1 . 1 . 6 1 . . . Fabricators . | . . . . . . . . . . . . . . . . . . Repair Stations . | . . . . . . . . . . . . . . . . . . Recycling Units 1 | . . . . . . 1 . . . . . . . . . . . Tunnel 1 | . . . . . . 1 . . . . . . . . . . . Scanalyzers . | . . . . . . . . . . . . . . . . . . Garrison Access . | . . . . . . . . . . . . . . . . . . Data Cores Recovered 2 | . . . . . 2 . . . . . . . . . . . . Used 1 | . . . . . 1 . . . . . . . . . . . . Hacking Detections 57 | . 8 . . . 5 4 5 . 6 . 12 1 6 1 . 8 1 Full Trace Events 4 | . . . . . . . . . 1 . 2 . 1 . . . . Feedback Events . | . . . . . . . . . . . . . . . . . . Feedback Blocked . | . . . . . . . . . . . . . . . . . . Robot Schematics Acquired . | . . . . . . . . . . . . . . . . . . Robots Built . | . . . . . . . . . . . . . . . . . . Authchips . | . . . . . . . . . . . . . . . . . . Time . | . . . . . . . . . . . . . . . . . . Total Robot Build Rating . | . . . . . . . . . . . . . . . . . . Part Schematics Acquired 2 | . . . . . . . . . . . 1 . 1 . . . . Parts Built 6 | . . . . . . . . . . . 4 . 2 . . . . Authchips . | . . . . . . . . . . . . . . . . . . Time 210 | . . . . . . . . . . . 168 . 42 . . . . Total Part Build Rating 24 | . . . . . . . . . . . 16 . 8 . . . . Part Studies Acquired 7 | . . . . . . . . . 1 . 1 . . . . 5 . Parts Repaired . | . . . . . . . . . . . . . . . . . . Time . | . . . . . . . . . . . . . . . . . . Parts Recycled . | . . . . . . . . . . . . . . . . . . Recycled Matter . | . . . . . . . . . . . . . . . . . . Retrieved Matter . | . . . . . . . . . . . . . . . . . . Retrieved Components 3 | . . . . . . . . . . . 3 . . . . . . Parts Scanalyzed . | . . . . . . . . . . . . . . . . . . Part Schematics Acquired . | . . . . . . . . . . . . . . . . . . Parts Damaged . | . . . . . . . . . . . . . . . . . . Bothacking | -11 -10 -10 -10 -9 -8 -8 -7 -7 -6 -6 -6 -5 -4 -3 -3 -2 -1 ------------ Run | Yrd Mat Min Exi Min Mat Sto Fac DSF Fac Was Fac Fac Fac Res DSF Res Acc Used RIF Installer . | . . . . . . . . . . . . . . . . . . Robots Hacked . | . . . . . . . . . . . . . . . . . . Non-combat . | . . . . . . . . . . . . . . . . . . Combat . | . . . . . . . . . . . . . . . . . . Robot Hacks Applied . | . . . . . . . . . . . . . . . . . . Relay Couplers Released . | . . . . . . . . . . . . . . . . . . Fabnet Peak Effective % . | . . . . . . . . . . . . . . . . . . Robots Rewired . | . . . . . . . . . . . . . . . . . . Allies Hacked . | . . . . . . . . . . . . . . . . . . Hacks Repelled . | . . . . . . . . . . . . . . . . . . Allies | -11 -10 -10 -10 -9 -8 -8 -7 -7 -6 -6 -6 -5 -4 -3 -3 -2 -1 -------- Run | Yrd Mat Min Exi Min Mat Sto Fac DSF Fac Was Fac Fac Fac Res DSF Res Acc Total Allies 15 | . . 1 . 1 2 11 . . . . . . . . . . . Largest Group 10 | . . 1 1 1 1 10 . . . . . . . . . . . Highest-Rated Group 173 | . . 31 31 8 16 173 . . . . . . . . . . . Highest-Rated Ally 31 | . . 31 31 8 16 29 . . . . . . . . . . . Total Orders 6 | . . . . 4 . 2 . . . . . . . . . . . STAY 1 | . . . . . . 1 . . . . . . . . . . . EXPLORE 3 | . . . . 3 . . . . . . . . . . . . . RETURN 2 | . . . . 1 . 1 . . . . . . . . . . . Ally Attacks 148 | . . . . 19 19 103 . . 7 . . . . . . . . Total Damage 1439 | . . . . 101 112 1199 . . 27 . . . . . . . . Kills 22 | . . . . 2 1 18 . . 1 . . . . . . . . Allies Corrupted . | . . . . . . . . . . . . . . . . . . Allies Melted . | . . . . . . . . . . . . . . . . . . Intel | -11 -10 -10 -10 -9 -8 -8 -7 -7 -6 -6 -6 -5 -4 -3 -3 -2 -1 ------- Run | Yrd Mat Min Exi Min Mat Sto Fac DSF Fac Was Fac Fac Fac Res DSF Res Acc Active Infowar (turns) 4207 | 7 219 . . . 19 490 341 174 547 61 986 49 526 19 53 535 181 Optics 3981 | . . . . . 19 490 341 174 547 61 986 49 526 19 53 535 181 Seismic 226 | 7 219 . . . . . . . . . . . . . . . . Jamming 8 | . . . . . . . . . . . 8 . . . . . . Robot Analysis Total . | . . . . . . . . . . . . . . . . . . Derelict Logs Recovered 2 | . . 1 . 1 . . . . . . . . . . . . . Drone Launches 45 | . . . . 20 15 2 . . 8 . . . . . . . . Drone Recoveries 42 | . . . . 20 14 2 . . 6 . . . . . . . . Exploration | -11 -10 -10 -10 -9 -8 -8 -7 -7 -6 -6 -6 -5 -4 -3 -3 -2 -1 ------------- Run | Yrd Mat Min Exi Min Mat Sto Fac DSF Fac Was Fac Fac Fac Res DSF Res Acc Turns Passed 7276 | 165 1060 328 268 437 1056 490 341 174 547 61 986 49 526 19 53 535 181 Spaces Moved 9378 | 76 555 223 242 279 540 304 671 202 551 127 1843 132 1446 69 49 1810 259 Core 2 | 2 . . . . . . . . . . . . . . . . . Treads 693 | 74 555 37 . . 27 . . . . . . . . . . . . Legs 368 | . . . . . 58 304 6 . . . . . . . . . . Wheels 1378 | . . 186 242 279 455 . . 8 208 . . . . . . . . Hover . | . . . . . . . . . . . . . . . . . . Flight 6937 | . . . . . . . 665 194 343 127 1843 132 1446 69 49 1810 259 Fastest Speed 12 | 50 160 95 110 110 110 120 24 24 31 47 24 21 21 19 15 12 12 Average Speed 56 | 157 160 111 110 110 133 120 24 74 75 47 43 22 21 19 95 19 25 Slowest Speed 520 | 160 160 160 110 155 400 120 120 440 132 47 59 24 25 19 520 190 97 Overloaded Moves 60 | . . . . . . . . . . . . . . . 26 34 . Propulsion Burnouts . | . . . . . . . . . . . . . . . . . . Robots Hopped 109 | . . . . . . . 12 2 1 . 32 . 29 . 1 29 3 Potential Cave-ins . | . . . . . . . . . . . . . . . . . . Cave-ins Triggered . | . . . . . . . . . . . . . . . . . . Exploration Rate (%) 41 | 4 93 50 61 63 35 40 26 93 9 78 52 4 30 4 46 45 10 Regions Visited 17 Branch Regions 4 Pre-discovered Areas 2 | . . . 1 . . 1 . . . . . . . . . . . Known Exits Taken 4 | . . . . . . . 1 . . . 1 . 1 1 . . . Unknown Exits Taken 9 | 1 1 1 1 1 1 1 . . . . . 1 . . . 1 . Scrap Searched 1 | . . 1 . . . . . . . . . . . . . . . Spaces Dug 63 | . . . . . 9 2 . . . . 17 . 13 . . 22 . Terrain Destroyed 65 | . . . . . 10 2 . . . . 18 . 13 . . 22 . Melee 14 | . . . . . . . . . . . . . 2 . . 12 . Projectile 51 | . . . . . 10 2 . . . . 18 . 11 . . 10 . AOE . | . . . . . . . . . . . . . . . . . . Terrain Rammed . | . . . . . . . . . . . . . . . . . . Walls Destroyed . | . . . . . . . . . . . . . . . . . . Machines Disabled . | . . . . . . . . . . . . . . . . . . Actions | -11 -10 -10 -10 -9 -8 -8 -7 -7 -6 -6 -6 -5 -4 -3 -3 -2 -1 --------- Run | Yrd Mat Min Exi Min Mat Sto Fac DSF Fac Was Fac Fac Fac Res DSF Res Acc Total 10889 | 102 661 264 244 386 817 406 837 223 662 127 1983 150 1610 73 53 1927 364 Wait 1066 | 5 43 11 . 80 172 61 134 17 77 . 123 6 151 . 4 97 85 Move 9152 | 75 554 222 241 278 539 303 646 197 549 126 1780 131 1392 68 46 1753 252 Hop 99 | . . . . . . . 12 2 1 . 29 . 24 . 1 27 3 Pick Up 72 | 5 14 1 1 4 16 1 7 1 1 1 3 2 7 1 . 4 3 Fast Attach 66 | 7 2 . . 1 10 9 4 2 8 . 10 4 2 . 1 4 2 Attach 45 | . 1 5 . 7 4 . 6 . 6 . . 3 3 2 . 3 5 Detach 16 | . . . 2 3 2 1 . . 2 . 1 . 1 . 1 . 3 Swap 30 | . 1 4 . 1 5 2 3 1 1 . 2 . 1 2 . 4 3 Drop 79 | . 4 1 . . 20 6 15 3 3 . 8 4 3 . . 8 4 Fire 200 | 10 41 20 . 12 45 18 . . 14 . 18 . 11 . . 11 . Melee 25 | . . . . . . . . . . . . . 5 . . 16 4 Ram . | . . . . . . . . . . . . . . . . . . Kick 3 | . . . . . 1 2 . . . . . . . . . . . Crush 1 | . 1 . . . . . . . . . . . . . . . . Escape Stasis 29 | . . . . . . . 10 . . . 9 . 10 . . . . Rewire 6 | . . . . . 3 3 . . . . . . . . . . . Trap . | . . . . . . . . . . . . . . . . . . Miscellaneous . | . . . . . . . . . . . . . . . . . . Route ------- -11/Scrapyard -10/Materials (discovered 4 exits: [*Mat x3] / [*Min]) -10/Mines (discovered 2 exits: [*Mat] / *Exi) -10/Exiles (discovered 2 exits: *Min x2) -9/Mines -8/Materials -8/Storage -7/Factory -7/DSF -6/Factory (discovered 2 exits: Low x2) -6/Waste -6/Factory (discovered 4 exits: *Fac x4) -5/Factory -4/Factory (discovered 4 exits: *Res x4) -3/Research -3/DSF -2/Research (discovered 3 exits: *Acc / *Tes x2) -1/Access To Epsilon Eridani History --------- Turn | Location | Event 28 | -11/Scrapyard | Discovered new exit (range 14) 166 | -11/Scrapyard | Entered Materials 313 | -10/Materials | Build established: Mutant 537 | -10/Materials | Discovered new exit (range 16) 741 | -10/Materials | Discovered new exit (range 10) 882 | -10/Materials | Discovered new exit (range 6) 1104 | -10/Materials | Discovered new exit (range 16) 1226 | -10/Materials | Entered Mines 1279 | -10/Mines | Core integrity fell below 50% 1342 | -10/Mines | Discovered new exit (range 5) 1406 | -10/Mines | Learned Materials terminal intel 1407 | -10/Mines | Found DCF Scrap (14 items) 1498 | -10/Mines | Escorted by a lone wolf Derelict 1547 | -10/Mines | Deemed a non-threat by the Exiles lab entrance 1548 | -10/Mines | Discovered new exit (range 5) 1554 | -10/Mines | Entered Exiles 1554 | -10/Exiles | Accompanied by 1 ally 1570 | -10/Exiles | Discovered new exit (range 15) 1583 | -10/Exiles | Met 8R-AWN 1599 | -10/Exiles | Met EX-HEX 1631 | -10/Exiles | Met EX-BIN 1643 | -10/Exiles | Aligned with FarCom system 1645 | -10/Exiles | Given EX-Vault access code 1672 | -10/Exiles | Opened EX-Vault 1681 | -10/Exiles | Found Firepult 1703 | -10/Exiles | Warned to stay clear of 0b10 Research branches 1718 | -10/Exiles | Exiles lab attacked by MAIN.C 1740 | -10/Exiles | Learned location of Zion (-7) 1807 | -10/Exiles | Discovered new exit (range 14) 1822 | -10/Exiles | Left Exiles lab with Firepult 1822 | -10/Exiles | Entered Mines 1826 | -9/Mines | Met a Derelict bent on vengeance 1833 | -9/Mines | Assembled infested the area 1838 | -9/Mines | Assisted by a Guerilla fighting off Assembled 1857 | -9/Mines | Learned Materials garrison access intel 1898 | -9/Mines | Found the Drone Emporium 1902 | -9/Mines | Found Prototype Device 1902 | -9/Mines | Identified Splice Drone Bay 1967 | -9/Mines | Core integrity fell below 20% 2202 | -9/Mines | Discovered new exit (range 5) 2228 | -9/Mines | Met a Derelict shopkeep closing up shop 2259 | -9/Mines | Entered Materials 2259 | -8/Materials | Evolved 4 slots: Propulsion x2, Utility x2 2260 | -8/Materials | Loaded intel: 12 terminal locations 2261 | -8/Materials | Loaded intel: 1 garrison access location 2751 | -8/Materials | Build established: Scavenger-Mutant 2946 | -8/Materials | Discovered new exit (range 9) 3261 | -8/Materials | Lost 3 allies 3315 | -8/Materials | Entered Storage 3359 | -8/Storage | Assisted by bots powering up and referring to "LRC-V3" 3659 | -8/Storage | Build established: Commander-Mutant 3699 | -8/Storage | Discovered new exit (range 20) 3805 | -8/Storage | Entered Factory 3805 | -7/Factory | Evolved 2 slots: Propulsion x2 4106 | -7/Factory | Build established: Sprinter 4145 | -7/Factory | Identified exit to DSF 4146 | -7/Factory | Entered DSF 4166 | -7/DSF | Additional patrols routed to DSF 4300 | -7/DSF | Discovered new exit (range 17) 4320 | -7/DSF | Entered Factory 4320 | -6/Factory | Evolved 2 slots: Utility x2 4346 | -6/Factory | Lost 6 parts (5n1u) 4497 | -6/Factory | Identified exit to Lower Caves 4614 | -6/Factory | Build established: Hacker-Mutant 4867 | -6/Factory | Sucked down chute 4867 | -6/Factory | Entered Waste 4871 | -6/Waste | Spotted C-40 Crusher 4872 | -6/Waste | Spotted C-40 Crusher 4872 | -6/Waste | Spotted C-40 Crusher 4897 | -6/Waste | Spotted C-40 Crusher 4900 | -6/Waste | Found Fusion Bomb Launcher 4904 | -6/Waste | Spotted C-40 Crusher 4904 | -6/Waste | Spotted C-40 Crusher 4923 | -6/Waste | Discovered new exit (range 11) 4928 | -6/Waste | Entered Factory 5034 | -6/Factory | System corruption reached 10% 5067 | -6/Factory | Identified exit to Factory 5719 | -6/Factory | Fabricated Xenon Bombardment Thruster? 5774 | -6/Factory | Fabricated Xenon Bombardment Thruster? 5914 | -6/Factory | Entered another Factory area 5914 | -5/Factory | Evolved 2 slots: Power x1, Propulsion x1 5962 | -5/Factory | Discovered new exit (range 3) 5963 | -5/Factory | Entered another Factory area 5963 | -4/Factory | Evolved 2 slots: Utility x2 5980 | -4/Factory | Build established: Hacker-Sprinter 6024 | -4/Factory | Fabricated Xenon Bombardment Thruster? 6381 | -4/Factory | Build established: Wizard-Sprinter 6424 | -4/Factory | Identified exit to Research 6489 | -4/Factory | Entered Research 6489 | -3/Research | Evolved 2 slots: Propulsion x1, Utility x1 6508 | -3/Research | Identified exit to DSF 6508 | -3/Research | Entered DSF 6541 | -3/DSF | Discovered new exit (range 20) 6561 | -3/DSF | Entered Research 6561 | -2/Research | Evolved 2 slots: Propulsion x1, Utility x1 6604 | -2/Research | Spotted B-90 Cyclops 6706 | -2/Research | Spotted B-90 Cyclops 6832 | -2/Research | Discovered new exit (range 10) 6834 | -2/Research | Identified exit to Testing 6877 | -2/Research | Watched by a mysterious "MATRIX" hacker. 6886 | -2/Research | Discovered exit to Testing (range 5) 7042 | -2/Research | Spotted B-90 Cyclops 7061 | -2/Research | Search patrols dispatched 7096 | -2/Research | Discovered new exit (range 4) 7096 | -2/Research | Entered Access 7096 | -1/Access | Evolved 2 slots: Power x1, Propulsion x1 7277 | -1/Access | Discovered new exit (range 6) 7277 | *** | Escaped! Last Messages --------------- 07220_ Sneak attack on R-10 Processor. 07220_ Destroyed Imp. Ion Engine. 07220_ Destroyed Com. Wheel. 07234_ Acquired Cld. Field Propulsion Drive. 07237_ Dropped Quantum Reactor. 07249_ Sneak attack on R-10 Processor. 07249_ R-10 Processor destroyed. 07252_ Acquired 102 matter. 07259_ Acquired Cld. Field Propulsion Drive. 07268_ W-44 Eye sends out distress signal. 07273_ Lgt. Quantum Reactor destroyed. 07273_ Acquired 12 matter. 07276_ Connecting with Terminal... 07276_ Current location identified: Access >>Open(Door) Sealed Barrier opened. 07277_ The Access Shell folds into the floor. 07277_ EXIT=FOUND [Achievement: Epsilon Run] Map ----- +----------------------------------------------------+ | ????????????????????????????????????????????? ? | | ????????????????????????????????????????????? ? | | ?????????????????????????????????????????????# #? | | ?????????????????????????????????????????????# #? | | ?????????????????????????????????????????????# #? | | ?????????????????????????????????????????????# #? | | ?????????????????????????????????????????????# #? | | ????????????????????????????????????########## #? | | ????????????????????????????????????# #? | | ????????????????????????????????????+ #? | | ????????????????????????????????????# +? | | ????????????????????????????????????# #? | | ?????????????????????????????????????# #? | | ?????????????????????????????????????# #? | | ?????????????????????????????????????# ####### #? | | ?????????????????????????????????????# #?????# #? | | ?????????????????????????????????????# #?????# #? | | ?????????????????????????????????????# #????##+## | | ?????????????????????????????????????# #????# | | ?????????????????????????????###?????# #????# | | ????????????????????########## ####### #????# | | ????????????????????" #????# | | ??????????????BB????" #????# | | ??????????????BB????" #????# | | ????????????????????" #????# | | ????????????????????" "@ #????# | | ????????????????????" "" #????# | | ????????????????????" u #????# | | ??????????????BB????" #????# | | ??????????????BB????" """ """ #????# | | ????????????????????" """T""" #????##### | | ????????????????????########## ####### #????????? | | ?????????????????????????????###?????# #????????? | | ?????????????????????????????????????# #????????? | | ?????????????????????????????????????# #????????? | | ?????????????????????????????????????# #????????? | | ?????????????????????????????????????? #????????? | | ?????????????????????????????????????? #????????? | | ?????????????????????????????????????? #????????? | | ?????????????????????????????????????? #????????? | | ?????????????????????????????????????? ?????????? | | ???????????????????????sss?s??????????? ?????????? | | ?????????????????????s???????????????????????????? | | ?????????????????????????????????????????????????? | | ?????????????????????????????????????????????????? | | ?????????????????????????????????????????????????? | | ?????????????????????????????????????????????????? | | ?????????????????????????????????????????????????? | | ?????????????????????????????????????????????????? | | ?????????????????????????????????????????????????? | +----------------------------------------------------+ Best States ------------- Heat Dissipation 71 Coolant Potential 100 Energy Generation 65 Energy Capacity 600 Matter Stores 500 Matter Capacity 500 Sight Range 20 Terrain Scan Density 10 Jamming Range 12 Corruption Containment 8 Armor Coverage 150 Resistance: EX 50 Evasion (%) 79 Targeting Accuracy 5 Recoil Reduction 2 Offensive Hacking 46 Defensive Hacking 40 Item Schematics ----------------- Xenon Bombardment Thruster | -6/Factory | Hacked Field Propulsion Drive | -4/Factory | Hacked Robot Schematics ------------------ None Fabricated ------------ Xenon Bombardment Thruster | x2 | -6/Factory Xenon Bombardment Thruster | x2 | -6/Factory Xenon Bombardment Thruster | x2 | -4/Factory Repaired ---------- Nothing Studied --------- Xenon Bombardment Thruster | -6/Factory | Hacked Nuclear Pulse Thruster | -6/Factory | Hacked Impulse Thruster | -2/Research | Hacked Field Propulsion Drive | -2/Research | Hacked Fusion Bomb Launcher | -2/Research | Hacked Imp. Deuterium Engine | -2/Research | Hacked Q-thruster | -2/Research | Hacked Alien Tech Used ----------------- None Achievements -------------- Can't Catch Me Denied? Dodgeball, But With Guns Epsilon Run Origins Satisfying Challenges ------------ None Game ------ Seed FieldVortexNanovents Manual? 0 Play Time 02:18:19 Cumulative 98.0 hours Start 2026.03.03 @ 15:11:31 End 2026.03.04 @ 17:00:09 Sessions 4 Manual Loads 0 Difficulty Rogue Special Mode None Game No. 92 Rogue 92 Adventurer 0 Explorer 0 Win Type 0 Total 1 Types 1/0/0/0/0/0/0/0/0/0 Lore% 63 Gallery% 48 Achievement% 40 Wizard Run 0 Options --------- Layout 1 ASCII 0 Keyboard 0 Movement Arrows Keybinds 0 Fullscreen 1 Font 24/Swanston Map View 50x35 Zoom Use 0% Tactical HUD 1 Map Filters NONE Filters NONE Steam 1 RUN: c3e7cf05-285b-434d-81e7-11b90eb09467